Cogmind - Beta 16 @@@ ROGUE MODE // 2025.10.24 @ 20:25:51 Player: abnormality Result: Self-destructed Performance ------------- Evolutions (1) 500 Regions Visited (3) 600 Robots Destroyed (16) 80 Value Destroyed (457) 457 Prototype IDs (0) 0 Alien Tech Used (0) 0 Bonus (0) 0 TOTAL SCORE: 1637 Bonus ------- None Cogmind --------- Core Integrity 329/400 Matter 4/300 Energy 160/160 System Corruption 0% Temperature Cool (0) Movement Core (250) Ox4 Location -9/Materials Parts ------- > --- POWER (1) -------- Light Nuclear Core > --- PROPULSION (2) --- (None) > --- UTILITY (4) ------ Small Storage Unit Seismic Detector > --- WEAPON (2) ------- Rocket Launcher > --- INVENTORY (8) ---- Ion Engine Light Ion Engine Weight Redist. System Improved Terrain Scanner Autogun Autogun Autogun Rocket Launcher Peak State ------------ > --- POWER ------------ Light Nuclear Core > --- PROPULSION ------- Light Treads Light Treads > --- UTILITY ---------- Small Storage Unit Seismic Detector > --- WEAPON ----------- Autogun Autogun > --- INVENTORY -------- Ion Engine Light Ion Engine Weight Redist. System Improved Terrain Scanner Autogun Autogun Rocket Launcher Rocket Launcher [Rating: 12] Favorites ----------- Power Light Nuclear Core Engine Ion Engine Power Core Light Nuclear Core Propulsion Light Treads Treads Light Treads Utility Small Storage Unit Device Seismic Detector Storage Small Storage Unit Weapon Autogun Ballistic Gun Autogun Launcher Rocket Launcher Build | -11 -10 -10 -9 ------- Run | Yrd Mat Min Mat Slots Evolved 2 | . . . 2 Power . | . . . . Propulsion . | . . . . Utility 2 | . . . 2 Weapon . | . . . . Parts Attached 11 | 7 3 1 . Power 2 | 1 1 . . Engine 1 | 1 . . . Core 1 | . 1 . . Reactor . | . . . . Propulsion 2 | 2 . . . Treads 2 | 2 . . . Leg . | . . . . Wheel . | . . . . Hover . | . . . . Flight . | . . . . Utility 2 | 2 . . . Device 1 | 1 . . . Storage 1 | 1 . . . Processor . | . . . . Hackware . | . . . . Protection . | . . . . Artifact . | . . . . Weapon 5 | 2 2 1 . Energy Gun . | . . . . Energy Cannon . | . . . . Ballistic Gun 4 | 2 2 . . Ballistic Cannon . | . . . . Launcher 1 | . . 1 . Special Weapon . | . . . . Impact Weapon . | . . . . Slashing Weapon . | . . . . Piercing Weapon . | . . . . Special Melee Weapon . | . . . . Unidentified Prototypes . | . . . . Parts Lost 3 | . . . 3 Power . | . . . . Propulsion 2 | . . . 2 Utility . | . . . . Weapon 1 | . . . 1 Highest Loss Streak 2 | . . . 2 To Critical Strikes . | . . . . Average Backups 7 | 2 7 8 8 Power 1 | 1 2 2 2 Propulsion . | . . . . Utility 1 | . 1 2 2 Weapon 3 | . 3 4 4 Tool/Special . | . . . . Unused Backups 8 | . 2 . 6 Power 2 | . 1 . 1 Propulsion . | . . . . Utility 2 | . . . 2 Weapon 4 | . 1 . 3 Tool/Special . | . . . . Average Slot Usage (%) 94 | . 100 100 74 Engine 3 | . 10 . . Core 9 | . 3 14 11 Treads 26 | . 28 28 22 Device 13 | . 14 14 11 Storage 13 | . 14 14 11 Ballistic Gun 22 | . 28 24 8 Launcher 3 | . . 3 11 Peak Build Rating 12 | 7 12 12 12 Average Rating 10 | 5 10 12 11 On Entrance 7 | . 7 12 12 Avg Prop Armor Cover (%) . | . . . . Naked Turns . | . . . . Heaviest Build 18 | 14 17 18 18 Greatest Support 40 | 40 40 40 40 Greatest Overweight (x) 1 | 1 . . . Average Overweight (x) . | . . . . Largest Inventory Capacity 8 | 8 8 8 8 Average Capacity 7 | 7 8 8 8 Most Carried 8 | 5 8 8 8 Average Carried 7 | 3 7 8 8 Final Capacity 8 | 8 8 8 8 Final Carried 8 | 4 8 8 8 Class Distribution -------------------- 100% | Mutant Dominant Class ---------------- Mutant | -10/Materials Mutant | -10/Mines Mutant | -9/Materials Resources | -11 -10 -10 -9 ----------- Run | Yrd Mat Min Mat Matter Collected 439 | 281 102 . 56 Remotely . | . . . . Salvage Created 408 | 93 201 . 114 Parts 32 | 8 11 . 13 Haulers Intercepted . | . . . . Recyclers Shooed 1 | 1 . . . Parts Field Recycled . | . . . . Retrieved Matter . | . . . . Parts Self-Destructed . | . . . . Prevented . | . . . . Parts Restored . | . . . . Kills | -11 -10 -10 -9 ------- Run | Yrd Mat Min Mat Combat Hostiles Destroyed 13 | . 4 . 9 Guns 4 | . 4 . . AOE 9 | . . . 9 Classes Destroyed 6 | 2 1 . 3 Tunneler 1 | 1 . . . Recycler 1 | 1 . . . Operator 1 | . . . 1 Swarmer 6 | . . . 6 Grunt 6 | . 4 . 2 Sentry 1 | . . . 1 Best Kill Streak 8 | 2 2 . 8 Combat Bots Only 7 | . 2 . 7 Max Kills in Single Turn 3 | 1 1 . 3 Gunslinging . | . . . . Exploded 3 | . . . 3 Melee . | . . . . Uniques/NPCs Destroyed . | . . . . Combat | -11 -10 -10 -9 -------- Run | Yrd Mat Min Mat Hostile Shots Fired 41 | . 18 . 23 Missed 10 | . 2 . 8 Hits 31 | . 16 . 15 Projectile 31 | . 16 . 15 Damage Taken 722 | . 231 42 449 Core 129 | . 58 . 71 Absorbed by Shields . | . . . . Core Remaining (%) 88 | 100 . 76 . Volleys Fired 44 | 3 20 1 20 Largest 2 | 2 2 2 2 Hottest 56 | 40 46 56 56 Shots Fired 77 | 6 40 2 29 Gun 56 | 6 40 1 9 Cannon . | . . . . Launcher 21 | . . 1 20 Special . | . . . . Kinetic 56 | 6 40 1 9 Thermal . | . . . . Explosive 21 | . . 1 20 Electromagnetic . | . . . . Robot Hit Streak 7 | 4 5 . 7 Robot Miss Streak 3 | . 3 . 3 Penetration Max . | . . . . Secondary Targets 1 | . 1 . . Max Gunslinging Chain 1 | . 1 . . Shots Hit Robots 37 | 4 22 . 11 Core Hits 24 | 3 8 . 13 Critical Kills . | . . . . Critical Parts Destroyed . | . . . . Critical Strikes . | . . . . Melee Attacks . | . . . . Impact . | . . . . Slashing . | . . . . Piercing . | . . . . Sneak Attacks . | . . . . Combat Hostiles . | . . . . Follow-up Attacks . | . . . . Damage Inflicted 1223 | 45 332 . 846 Guns 429 | 45 326 . 58 Cannons . | . . . . Explosions 788 | . . . 788 Melee . | . . . . Ramming 6 | . 6 . . Kinetic 429 | 45 326 . 58 Thermal . | . . . . Explosive 788 | . . . 788 Electromagnetic . | . . . . Impact . | . . . . Slashing . | . . . . Piercing . | . . . . Highest Corruption . | . . . . Average Corruption . | . . . . Corruption Purged . | . . . . Corruption Blocked . | . . . . Overload Shots . | . . . . Overflow Damage 31 | . . . 31 Projectiles . | . . . . Explosions 31 | . . . 31 Melee . | . . . . Knockbacks . | . . . . Impact . | . . . . Kinetic . | . . . . Secondary . | . . . . Self-Inflicted Damage 250 | . . 43 207 Shots 7 | . . 1 6 Rammed 1 | . 1 . . Targets Rammed 1 | . 1 . . Kicked . | . . . . Crushed . | . . . . Highest Temperature 52 | . 44 20 52 Average Temperature 17 | . 17 10 18 Received Heat Transfer 183 | . 129 . 54 Siege Activations . | . . . . Martial Activations . | . . . . Shielding Activations . | . . . . Robots Disrupted . | . . . . Combat Hostiles . | . . . . Robots Corrupted . | . . . . Combat Hostiles . | . . . . Parts Fried . | . . . . Impact Corruptions . | . . . . Robots Melted . | . . . . Combat Hostiles . | . . . . Parts Melted . | . . . . Heat Transferred . | . . . . Parts Sabotaged . | . . . . Parts Stolen . | . . . . Parts Stripped . | . . . . Power Chain Reactions . | . . . . Alert | -11 -10 -10 -9 ------- Run | Yrd Mat Min Mat Maximum Alert Level 1 | . . . 1 Low Security (%) 97 | 100 100 100 85 Level 1 2 | . . . 15 Level 2 . | . . . . Level 3 . | . . . . Level 4 . | . . . . Level 5 . | . . . . High Security . | . . . . Max Security . | . . . . Peak Influence 375 | 5 51 4 375 Initial 4 | . . 4 . Average 26 | 1 15 . 109 Influence Increases 602 | 10 101 3 488 Destroy 0b10 Robot/C 260 | . 80 . 180 Destroy 0b10 Robot/NC 15 | 10 . . 5 Destroy Leader 60 | . 20 . 40 Successful Hack 5 | . . . 5 Disable Machine 120 | . . . 120 Destroy Structure 127 | . 1 3 123 Lose Combat Pursuer 15 | . . . 15 Influence Decreases 244 | 10 90 14 130 Entered New Map 7 | . . 7 . Time Decay 207 | 10 90 7 100 Lost Part 30 | . . . 30 Squads Dispatched 1 | . 1 . . Investigation . | . . . . Extermination . | . . . . Reinforcement 1 | . 1 . . Assault . | . . . . Garrison . | . . . . Intercept . | . . . . Searches Triggered . | . . . . Construction Impeded . | . . . . Haulers Reinforced . | . . . . Active Scanning Responses . | . . . . Cargo Convoy Interrupts . | . . . . Stealth | -11 -10 -10 -9 --------- Run | Yrd Mat Min Mat Distress Signals 4 | . 1 . 3 Communications Jammed . | . . . . Distress Signals . | . . . . Times Spotted 22 | . 6 . 16 Peak Tracking Total 8 | . 3 . 8 Tactical Retreats 1 | . . . 1 Traps | -11 -10 -10 -9 ------- Run | Yrd Mat Min Mat Traps Triggered 1 | . . . 1 Indirectly . | . . . . Trap Hack Attempts . | . . . . Triggered . | . . . . Disarmed . | . . . . Reprogrammed . | . . . . Reused . | . . . . Traps Extracted . | . . . . Installed . | . . . . Triggered . | . . . . Machines | -11 -10 -10 -9 ---------- Run | Yrd Mat Min Mat Machines Disabled 8 | . . . 8 Max in Single Turn 2 | . . . 2 Machines Repaired . | . . . . Machines Dismantled . | . . . . Machines Sabotaged . | . . . . Overloaded Fab Kills . | . . . . Hacking | -11 -10 -10 -9 --------- Run | Yrd Mat Min Mat Machines Accessed 1 | . . . 1 Terminals 1 | . . . 1 Fabricators . | . . . . Repair Stations . | . . . . Recycling Units . | . . . . Scanalyzers . | . . . . Garrison Access . | . . . . Total Hacks 2 | . . . 2 Successful 2 | . . . 2 Failed . | . . . . Catastrophic . | . . . . Database Lockouts . | . . . . Manual . | . . . . Terminals 2 | . . . 2 Fabricators . | . . . . Repair Stations . | . . . . Recycling Units . | . . . . Scanalyzers . | . . . . Garrison Access . | . . . . Terminal Hacks 2 | . . . 2 Transport Status 1 | . . . 1 Hauler Manifests 1 | . . . 1 Fabricator Hacks . | . . . . Repair Station Hacks . | . . . . Recycling Unit Hacks . | . . . . Scanalyzer . | . . . . Garrison Access Hacks . | . . . . Unauthorized Hacks . | . . . . Terminals . | . . . . Fabricators . | . . . . Repair Stations . | . . . . Recycling Units . | . . . . Scanalyzers . | . . . . Garrison Access . | . . . . Data Cores Recovered . | . . . . Used . | . . . . Hacking Detections . | . . . . Full Trace Events . | . . . . Feedback Events . | . . . . Feedback Blocked . | . . . . Robot Schematics Acquired . | . . . . Robots Built . | . . . . Authchips . | . . . . Time . | . . . . Total Robot Build Rating . | . . . . Part Schematics Acquired . | . . . . Parts Built . | . . . . Authchips . | . . . . Time . | . . . . Total Part Build Rating . | . . . . Part Studies Acquired . | . . . . Parts Repaired . | . . . . Time . | . . . . Parts Recycled . | . . . . Recycled Matter . | . . . . Retrieved Matter . | . . . . Retrieved Components . | . . . . Parts Scanalyzed . | . . . . Part Schematics Acquired . | . . . . Parts Damaged . | . . . . Bothacking | -11 -10 -10 -9 ------------ Run | Yrd Mat Min Mat Used RIF Installer . | . . . . Robots Hacked . | . . . . Non-combat . | . . . . Combat . | . . . . Robot Hacks Applied . | . . . . Relay Couplers Released . | . . . . Fabnet Peak Effective % . | . . . . Robots Rewired . | . . . . Allies Hacked . | . . . . Hacks Repelled . | . . . . Allies | -11 -10 -10 -9 -------- Run | Yrd Mat Min Mat Total Allies . | . . . . Largest Group . | . . . . Highest-Rated Group . | . . . . Highest-Rated Ally . | . . . . Total Orders . | . . . . Ally Attacks . | . . . . Total Damage . | . . . . Kills . | . . . . Allies Corrupted . | . . . . Allies Melted . | . . . . Intel | -11 -10 -10 -9 ------- Run | Yrd Mat Min Mat Active Infowar (turns) 974 | 49 336 389 200 Seismic 974 | 49 336 389 200 Robot Analysis Total . | . . . . Derelict Logs Recovered 1 | . . 1 . Drone Launches . | . . . . Drone Recoveries . | . . . . Exploration | -11 -10 -10 -9 ------------- Run | Yrd Mat Min Mat Turns Passed 1018 | 93 336 389 200 Spaces Moved 559 | 55 168 241 95 Core 19 | 19 . . . Treads 540 | 36 168 241 95 Legs . | . . . . Wheels . | . . . . Hover . | . . . . Flight . | . . . . Fastest Speed 50 | 50 160 160 160 Average Speed 156 | 123 160 160 160 Slowest Speed 160 | 160 160 160 160 Overloaded Moves . | . . . . Propulsion Burnouts . | . . . . Robots Hopped . | . . . . Potential Cave-ins . | . . . . Cave-ins Triggered . | . . . . Exploration Rate (%) 26 | 4 27 50 24 Regions Visited 3 Branch Regions 1 Pre-discovered Areas . | . . . . Known Exits Taken . | . . . . Unknown Exits Taken 3 | 1 1 1 . Scrap Searched . | . . . . Spaces Dug 14 | . . . 14 Terrain Destroyed 150 | . . 3 147 Melee . | . . . . Projectile . | . . . . AOE 150 | . . 3 147 Terrain Rammed . | . . . . Walls Destroyed . | . . . . Machines Disabled . | . . . . Actions | -11 -10 -10 -9 --------- Run | Yrd Mat Min Mat Total 634 | 74 203 242 115 Wait . | . . . . Move 556 | 54 167 240 95 Hop . | . . . . Pick Up 18 | 10 8 . . Fast Attach 1 | 1 . . . Attach 6 | 6 . . . Detach . | . . . . Swap 4 | . 3 1 . Drop 4 | . 4 . . Fire 44 | 3 20 1 20 Melee . | . . . . Ram . | . . . . Kick . | . . . . Crush 1 | . 1 . . Escape Stasis . | . . . . Rewire . | . . . . Trap . | . . . . Miscellaneous . | . . . . Route ------- -11/Scrapyard -10/Materials -10/Mines -9/Materials History --------- Turn | Location | Event 3 | -11/Scrapyard | Discovered new exit (range 15) 94 | -11/Scrapyard | Entered Materials 300 | -10/Materials | Build established: Mutant 364 | -10/Materials | Discovered new exit (range 15) 430 | -10/Materials | Entered Mines 437 | -10/Mines | Received a Rocket Launcher from a helpful Derelict 469 | -10/Mines | Discovered new exit (range 10) 483 | -10/Mines | Learned Materials terminal intel 709 | -10/Mines | Excavation squad dispatched 709 | -10/Mines | A large section of the Mines collapsed 819 | -10/Mines | Entered Materials 819 | -9/Materials | Evolved 2 slots: Utility x2 820 | -9/Materials | Loaded intel: 12 terminal locations 1019 | -9/Materials | Self-destructed Last Messages --------------- 00998_ U-05 Engineer builds a Wall. 00999_ T-07 Excavator is excavating. 01001_ R-06 Scavenger collects Flight Unit. 01002_ Destroyed Flight Unit. 01002_ Destroyed Lgt. Ion Engine. 01002_ S-10 Pest destroyed. 01002_ U-05 Engineer lays Concrete. 01003_ T-07 Excavator is excavating. 01003_ U-05 Engineer builds a Wall. 01004_ S-10 Pest destroyed. 01005_ K-01 Serf collects debris. 01005_ R-06 Scavenger collects Lgt. Assault Rifle. 01006_ U-05 Engineer lays Concrete. 01007_ T-07 Excavator is excavating. 01007_ U-05 Engineer lays Concrete. 01009_ K-01 Serf collects debris. 01010_ Lgt. Treads destroyed. 01012_ K-01 Serf collects debris. 01015_ Lgt. Treads destroyed. 01017_ K-01 Serf collects debris. Map ----- +----------------------------------------------------+ | ??????????????# + ### ???????? | | ??????????????# # ???????? | | ??????????????# # ???????? | | ??????????????# # ???????? | | ??????????????#########+ ####### ????????? | | ???????????????????# #?????+######????????? | | ???????????????????#! """"" #????????????????????? | | ???????????????????# """"" #????????????????????? | | ???????????????????# """"" #????????????????????? | | ???????????????????# """"" #????????????????????? | | ?????????????????### """ #????????????????????? | | ?????????????????# # """ #????????????????????? | | ?????????????????# # """ #????????????????????? | | ?????????????????# #????????????????????? | | ?????????????????# # # ####??????????????????? | | ?????????????????# #??????????????????? | | ?????????????????#### [ #??????????????????? | | T""?????????????????# " #??????????????????? | | """?????????????#?### " #??????????????????? | | ????????### #### # # #??????????????????? | | ??????? #??????????????????? | | ??????? ###+###+#####/##?????????? | | ???T???= [ w = [ auw?????????? | | ???????= k ![ ????????? | | ??????? ????????? | | ???????? $ @ a #??????????? | | ???????? " ## # #??????????? | | ????????? " ?# # #??????????? | | ?????????## # ??# a #??????????? | | ??????????###?###???#### r #??????????? | | ???????????????????????? [ #??????????? | | ???????????????????????? ###### #??????????? | | ??????????????????????? # #?????? #??????????? | | ???????????????????????##? #???????????????????? | | ?????????????????????????? #???????????????????? | | ?????????????????????????? ???????????????????? | | ?????????????????????????? ?????T"????????????? | | ?????????????????????????? ?????"????????????? | | ?????????????????????????? Y ??????????????????? | | ?????????????????????????? ???????????????????? | | ??????????????????????????? ??????????????????T??? | | ?????????????????????????????????????????????????? | | ?????????????????????????????????????????????????? | | ?????????????????????????????????????????????????? | | ?????????????????????????????????????????????????? | | ?????????????????????????????????????????????????? | | ????????"""??????????????????????????????????????? | | ????????"T"??????????????????????????????????????? | | ?????????????????????????????????????????????????? | | ?????????????????????????????????????????????????? | +----------------------------------------------------+ Best States ------------- Heat Dissipation 28 Energy Generation 14 Energy Capacity 250 Matter Stores 300 Matter Capacity 300 Sight Range 16 Terrain Scan Density 10 Evasion (%) 50 Recoil Reduction 2 Item Schematics ----------------- None Robot Schematics ------------------ None Fabricated ------------ Nothing Repaired ---------- Nothing Studied --------- None Alien Tech Used ----------------- None Achievements -------------- None Challenges ------------ None Game ------ Seed ShadeExperimentalMonowheel Manual? 0 Play Time 00:24:43 Cumulative 38.0 hours Start 2025.10.23 @ 12:20:43 End 2025.10.24 @ 20:25:51 Sessions 3 Manual Loads 0 Difficulty Rogue Special Mode None Game No. 160 Rogue 160 Adventurer 0 Explorer 0 Win Type - Total 0 Types 0/0/0/0/0/0/0/0/0/0 Lore% 29 Gallery% 28 Achievement% 17 Wizard Run 0 Options --------- Layout 0 ASCII 0 Keyboard 0 Movement Mouse Keybinds 0 Fullscreen 1 Font 18/X11 Map View 38x25 Zoom Use 99% Tactical HUD 1 Map Filters NONE Filters NONE Steam 1 RUN: 0d376c28-5f00-41b3-9fc7-48653a18b223